bitfinex-derivatives/quotes_ETHF0:USTF0_20260116
["timestamp","ask_amount","ask_price","bid_price","bid_amount"]
[1768560677812,0.25343986,3298.7,3297.5,0.85764586]
[1768560678014,0.25343986,3298.7,3297.3,0.00333747]
[1768560678209,0.25343986,3298.7,3297.5,0.85764586]
[1768560678706,0.25343986,3298.7,3297.3,0.00333747]
[1768560678906,0.25343986,3298.6,3297.3,0.86098333]
[1768560680405,0.25343986,3298.6,3297.3,0.00333747]
[1768560680701,0.25343986,3298.9,3297.8,0.85764586]
[1768560680906,0.94219433,3298.8,3297.8,0.85764586]
[1768560681108,0.25343986,3298.9,3297.8,0.85764586]
[1768560681307,0.94219674,3298.8,3297.8,0.85764586]
[1768560681615,0.25343986,3298.9,3297.8,0.85764586]
[1768560681814,0.9419248,3298.8,3297.8,0.85764586]
[1768560682017,0.25343986,3298.9,3297.8,0.85764586]
[1768560682217,0.94192561,3298.8,3297.8,0.85764586]
[1768560682413,0.25343986,3298.9,3297.8,0.85764586]
[1768560683713,0.25343986,3298.9,3297.7,0.85764586]
[1768560684114,1.20380623,3298.8,3297.3,0.00333747]
[1768560684320,0.26225642,3298.5,3297.3,0.86098333]
[1768560688917,1.11990228,3298.5,3297.3,0.00333747]
[1768560689122,0.2635194,3298.4,3297.3,0.00333747]
[1768560690722,0.2635194,3297.9,3297.3,0.00333747]
[1768560690924,0.2635194,3297.9,3296.1,0.17317416]
[1768560691218,0.4151594,3298.3,3297.2,0.85764586]
[1768560691815,0.4151594,3298.3,3297.2,0.86055146]
[1768560692015,0.4151594,3298.3,3297.2,0.0029056]
[1768560692215,1.12116526,3298.2,3297.2,0.0029056]
[1768560692521,0.2635194,3298.1,3297.2,0.0029056]
[1768560696817,0.2635194,3298.1,3296.4,1.184392]
[1768560697818,0.2635194,3298.1,3296.4,1.18658912]
[1768560698228,0.2635194,3298.1,3296.4,0.32751114]
[1768560699027,0.2635194,3298.1,3296.4,0.15392712]
[1768560700323,0.2635194,3297.9,3296.4,0.15392712]
[1768560702828,0.2635194,3297.9,3296.4,1.0130051]
[1768560706530,0.2635194,3297.9,3296.4,0.15392712]
[1768560706726,0.2635194,3297.7,3296.4,0.00219712]
[1768560712434,1.20023546,3297.6,3296.4,0.00219712]
[1768560712626,0.25581523,3297.6,3296.4,0.00219712]
[1768560713134,1.20009906,3297.5,3296.4,0.00219712]
[1768560713335,0.25581523,3297.5,3296.4,0.00219712]
[1768560716228,0.40747523,3297.9,3296.4,0.00219712]
[1768560716426,0.94440876,3297.8,3296.5,0.85907798]
[1768560716632,0.94440876,3297.7,3296.5,0.85907798]
[1768560716843,0.25581523,3297.9,3296.5,0.85907798]
[1768560717144,0.94441381,3297.8,3296.4,0.8612751]
[1768560717464,0.25581523,3297.9,3296.4,0.8612751]
[1768560717635,0.94466343,3297.8,3296.4,0.8612751]
[1768560717832,0.25581523,3297.6,3296.4,0.00219712]
[1768560721844,1.20010393,3297.5,3296.4,0.00219712]
[1768560722043,0.25581523,3297.5,3296.4,0.00219712]
[1768560722446,0.25581523,3298.1,3296.5,0.85907798]
[1768560722636,0.25581523,3297.9,3296.5,0.85907798]
[1768560722846,0.94432923,3297.8,3296.5,0.85907798]
[1768560723236,1.20014446,3297.8,3296.5,0.85907798]
[1768560723540,0.94432923,3297.7,3296.5,0.85907798]
[1768560723743,0.25581523,3297.8,3296.4,0.00219712]
[1768560724042,0.25581523,3297.6,3296.4,0.00219712]
[1768560727237,6.486,3298.8,3296.4,0.00219712]
[1768560727238,0.25581523,3297.4,3296.4,0.00219712]
[1768560727547,0.25834792,3297.4,3296.4,0.00219712]
[1768560729449,0.25581523,3297.2,3295.0,0.15179]
[1768560729751,0.25581523,3297.0,3295.0,0.15179]
[1768560730351,0.25581523,3297.0,3295.0,0.15439627]
[1768560730854,0.25581523,3297.0,3295.4,0.85907798]
[1768560731350,0.00253269,3297.4,3295.8,0.85907798]
[1768560731552,0.94328305,3297.3,3295.8,1.12183288]
[1768560731752,0.00253269,3297.4,3295.8,1.12183288]
[1768560731957,0.94330249,3297.3,3295.8,1.12183288]
[1768560732249,0.00253269,3297.4,3295.8,1.12183288]
[1768560732460,0.94317628,3297.3,3295.8,1.12183288]
[1768560732638,0.00253269,3297.4,3295.8,1.12183288]
[1768560732838,0.94317755,3297.3,3295.8,1.12183288]
[1768560733038,0.00253269,3297.4,3295.8,1.12183288]
[1768560733246,0.94317477,3297.3,3295.8,1.12183288]
[1768560733451,0.25834792,3297.4,3295.8,1.12183288]
[1768560733653,0.94307952,3297.3,3295.8,1.12183288]
[1768560733852,0.25834792,3297.4,3295.9,0.2627549]
[1768560739662,0.25834792,3297.4,3296.2,0.85907798]
[1768560740565,0.00253269,3297.4,3296.2,0.85907798]
[1768560743558,0.00253269,3297.4,3296.2,1.12539029]
[1768560744261,0.25581523,3297.9,3296.2,1.12539029]
[1768560744262,0.25941172,3297.9,3296.3,0.26631231]
[1768560744562,0.25941172,3297.9,3295.9,0.15175]
[1768560744864,0.25941172,3297.7,3295.9,0.15175]
[1768560745166,0.2630603,3297.7,3295.9,0.15175]
[1768560745667,0.2630603,3297.7,3296.0,1.01082798]
[1768560745854,0.2630603,3297.7,3296.4,0.85907798]
[1768560747480,0.00364858,3297.7,3296.4,0.85907798]
[1768560751966,0.00364858,3297.7,3296.2,1.01081798]
[1768560752973,0.00364858,3297.7,3296.2,1.26409803]
[1768560755366,0.00364858,3297.7,3296.8,0.85907907]
[1768560756664,0.00364858,3297.7,3296.3,0.25328005]
[1768560756865,0.86272765,3297.7,3296.3,0.25328005]
[1768560757666,0.86272765,3297.7,3296.3,1.11235912]
[1768560758373,0.00364858,3297.7,3296.9,0.85907907]
[1768560758561,0.00364858,3297.7,3296.7,0.25328005]
[1768560759365,0.00364858,3297.7,3296.2,0.15174]
[1768560759569,0.00364858,3297.7,3296.3,1.11235912]
[1768560759972,0.00364858,3297.7,3296.4,0.25328005]
[1768560763066,0.00364858,3297.7,3296.9,0.85907907]
[1768560763267,0.00364858,3297.7,3296.9,1.11235912]
[1768560766877,0.00364858,3297.7,3296.9,0.25328005]
[1768560768871,0.85907907,3297.6,3296.5,0.25328005]
[1768560769575,0.86272765,3297.7,3296.5,0.25328005]
[1768560769773,0.94127099,3297.6,3296.5,0.25328005]
[1768560769979,0.86272765,3297.7,3296.5,0.25328005]
[1768560770174,0.94127073,3297.6,3296.5,0.25328005]
[1768560770474,0.00364858,3297.7,3296.5,0.25328005]
[1768560770672,0.94131551,3297.6,3296.5,0.25328005]
[1768560770876,0.00364858,3297.7,3296.5,0.25328005]
[1768560771077,0.94131548,3297.6,3296.5,0.25328005]
[1768560771271,0.00364858,3297.7,3296.5,0.25328005]
[1768560771472,0.94136351,3297.6,3296.5,0.25328005]
[1768560771778,0.00364858,3297.7,3296.5,0.25328005]
[1768560771979,0.941364,3297.6,3296.5,0.25328005]
[1768560772178,0.00364858,3297.7,3296.5,0.25328005]
[1768560772380,0.94136485,3297.6,3296.5,0.25328005]
[1768560772682,0.00364858,3297.7,3296.5,0.25328005]
[1768560772874,0.94140859,3297.6,3296.5,0.25328005]
[1768560773077,0.00364858,3297.7,3296.5,0.25328005]
[1768560773374,0.94140932,3297.6,3296.5,0.25328005]
[1768560773576,0.00364858,3297.7,3296.5,0.25328005]
[1768560773775,0.94143421,3297.6,3296.5,0.25328005]
[1768560773976,0.00364858,3297.7,3296.5,0.25328005]
[1768560774178,0.94143507,3297.6,3296.5,0.25328005]
[1768560774380,0.00364858,3297.7,3296.5,0.25328005]
[1768560774580,0.94143112,3297.6,3296.5,0.25328005]
[1768560774781,0.00364858,3297.7,3296.5,0.25328005]
[1768560774981,0.9414325,3297.6,3296.5,0.25328005]
[1768560775284,0.00364858,3297.7,3296.5,1.11235912]
[1768560775485,0.94141758,3297.6,3296.5,1.11235912]
[1768560775786,0.00364858,3297.7,3296.5,1.11235912]
[1768560775987,0.94141774,3297.6,3296.5,1.11235912]
[1768560776183,0.00364858,3297.7,3296.5,1.11235912]
[1768560776383,0.94141679,3297.6,3296.5,1.11235912]
[1768560776677,0.00364858,3297.7,3296.6,0.29063728]
[1768560776878,0.94140552,3297.6,3296.6,0.29063728]
[1768560777086,0.00364858,3297.7,3296.6,0.29063728]
[1768560777287,0.9414064,3297.6,3296.6,0.29063728]
[1768560777474,0.00364858,3297.7,3296.6,0.29063728]
[1768560777678,0.94139644,3297.6,3296.6,0.29063728]
[1768560777886,0.00364858,3297.7,3296.6,0.29063728]
[1768560778093,0.94139642,3297.6,3296.6,0.29063728]
[1768560778390,0.00364858,3297.7,3296.6,0.29063728]
[1768560778574,0.94140136,3297.6,3296.6,0.29063728]
[1768560778778,0.00364858,3297.7,3296.6,0.29063728]
[1768560778978,0.94140058,3297.6,3296.6,0.29063728]
[1768560779187,0.00364858,3297.7,3296.6,0.29063728]
[1768560779387,0.94139974,3297.6,3296.6,1.14971635]
[1768560779589,0.00364858,3297.7,3296.6,1.14971635]
[1768560779788,0.9414084,3297.6,3296.6,1.14971635]
[1768560779988,0.00364858,3297.7,3296.6,1.14971635]
[1768560780189,0.94140963,3297.6,3296.6,1.14971635]
[1768560780483,0.00364858,3297.7,3296.6,0.29063728]
[1768560780690,0.94141729,3297.6,3296.6,0.29063728]
[1768560780892,0.00364858,3297.7,3296.6,0.29063728]
[1768560781093,0.94146422,3297.6,3296.6,0.29063728]
[1768560781390,0.00364858,3297.7,3296.6,0.29063728]
[1768560781576,0.9414782,3297.6,3296.6,0.29063728]
[1768560781779,0.00364858,3297.7,3296.6,0.29063728]
[1768560781985,0.94147659,3297.6,3296.6,0.29063728]
[1768560782186,0.00364858,3297.7,3296.6,0.29063728]
[1768560782390,0.94148583,3297.6,3296.6,0.29063728]
[1768560782590,0.86272765,3297.7,3296.6,0.29063728]
[1768560782792,0.94136604,3297.6,3296.6,0.29063728]
[1768560782991,0.86272765,3297.7,3296.6,0.29063728]
[1768560783291,0.94136498,3297.6,3296.6,0.29063728]
[1768560783489,0.00364858,3297.7,3296.6,0.29063728]
[1768560783693,0.94139022,3297.6,3296.6,0.29063728]
[1768560783988,0.00364858,3297.7,3296.6,0.29063728]
[1768560784194,0.9413904,3297.6,3296.6,0.29063728]
[1768560784391,0.00364858,3297.7,3296.6,0.29063728]
[1768560784592,0.94139003,3297.6,3296.6,0.29063728]
[1768560784793,0.00364858,3297.7,3296.6,0.29063728]
[1768560784997,0.94138898,3297.6,3296.6,0.29063728]
[1768560785195,0.00364858,3297.7,3296.6,0.29063728]
[1768560785494,0.94139562,3297.6,3296.6,0.29063728]
[1768560785692,0.00364858,3297.7,3296.6,0.29063728]
[1768560785894,0.94142856,3297.6,3296.6,0.29063728]
[1768560786094,0.94142856,3297.5,3296.6,0.29063728]
[1768560786281,0.00364858,3297.7,3296.6,0.29063728]
[1768560786490,0.94146977,3297.6,3296.6,0.29063728]
[1768560786688,0.94146977,3297.5,3296.6,0.29063728]
[1768560786894,0.00364858,3297.7,3296.6,0.29063728]
[1768560787096,0.94146944,3297.6,3296.6,0.29063728]
[1768560787290,0.00364858,3297.7,3296.6,0.29063728]
[1768560787291,0.94146944,3297.5,3296.6,0.29063728]
[1768560787597,0.94146944,3297.4,3296.6,0.29063728]
[1768560787796,0.00364858,3297.7,3296.6,0.29063728]
[1768560787996,1.32493344,3297.6,3296.6,0.29063728]
[1768560788197,0.94144269,3297.5,3296.6,0.29063728]
[1768560788498,0.94144269,3297.4,3296.6,0.29063728]
[1768560788699,0.00364858,3297.7,3296.6,0.29063728]
[1768560788897,1.32489148,3297.6,3296.6,0.29063728]
[1768560789102,0.94141108,3297.5,3296.6,0.29063728]
[1768560789300,0.94141108,3297.4,3296.6,0.29063728]
[1768560789500,0.00364858,3297.7,3296.6,0.29063728]
[1768560789702,1.32485327,3297.6,3296.6,0.29063728]
[1768560789906,0.94138379,3297.5,3296.6,0.29063728]
[1768560790104,0.94138379,3297.4,3296.6,0.29063728]
[1768560790298,0.00364858,3297.7,3296.6,0.29063728]
[1768560790499,1.32483434,3297.6,3296.6,0.29063728]
[1768560790702,0.94137339,3297.5,3296.6,0.29063728]
[1768560790895,0.94137339,3297.4,3296.6,0.29063728]
[1768560791094,0.00364858,3297.7,3296.6,0.29063728]
[1768560791294,1.32480968,3297.6,3296.6,0.29063728]
[1768560791495,0.94135329,3297.5,3296.6,0.29063728]
[1768560791695,0.94135329,3297.4,3296.6,0.29063728]
[1768560791898,0.00364858,3297.7,3296.6,0.29063728]
[1768560792099,1.3247953,3297.6,3296.6,0.29063728]
[1768560792305,0.94134247,3297.5,3296.6,0.29063728]
[1768560792516,0.94134247,3297.4,3296.6,0.29063728]
[1768560792718,0.00364858,3297.7,3296.6,0.29063728]
[1768560792906,1.3250067,3297.6,3296.6,0.29063728]
[1768560793111,0.94149266,3297.5,3296.6,0.29063728]
[1768560793317,0.94149266,3297.4,3296.6,0.29063728]
[1768560793618,0.00364858,3297.7,3296.6,0.29063728]
[1768560793812,1.32499872,3297.6,3296.6,0.29063728]
[1768560794014,0.94148819,3297.5,3296.6,0.29063728]
[1768560794214,0.94148819,3297.4,3296.6,0.29063728]
[1768560794414,0.00364858,3297.7,3296.6,0.29063728]
[1768560794612,1.32505283,3297.6,3296.6,0.29063728]
[1768560794813,0.94152647,3297.5,3296.6,0.29063728]
[1768560795125,0.94152647,3297.4,3296.6,0.29063728]
[1768560795327,0.00364858,3297.7,3296.6,0.29063728]
[1768560795516,1.32512434,3297.6,3296.6,0.29063728]
[1768560795813,0.94157749,3297.5,3296.6,0.29063728]
[1768560796007,0.94157749,3297.4,3296.6,0.29063728]
[1768560796211,0.00364858,3297.7,3296.6,0.29063728]
[1768560796416,1.32510506,3297.6,3296.6,0.29063728]
[1768560796615,0.94154438,3297.5,3296.6,0.29063728]
[1768560796812,0.94154438,3297.4,3296.6,0.29063728]
[1768560797017,0.00364858,3297.7,3296.6,0.29063728]
[1768560797218,1.32517251,3297.6,3296.6,0.29063728]
[1768560797414,0.94161151,3297.5,3296.6,0.29063728]
[1768560797621,0.94161151,3297.4,3296.6,0.29063728]
[1768560797818,0.00364858,3297.7,3296.6,0.29063728]
[1768560798015,1.32527516,3297.6,3296.6,0.29063728]
[1768560798221,0.94168442,3297.5,3296.6,0.29063728]
[1768560798420,0.94168442,3297.4,3296.6,0.29063728]
[1768560798721,0.00364858,3297.7,3296.6,0.29063728]
[1768560798921,1.32543691,3297.6,3296.6,0.29063728]
[1768560799123,0.941799,3297.5,3296.6,0.29063728]
[1768560799324,0.941799,3297.4,3296.6,0.29063728]
[1768560799516,0.00364858,3297.7,3296.6,0.29063728]
[1768560799817,1.32545816,3297.6,3296.6,0.29063728]
[1768560800120,0.94181377,3297.5,3296.6,0.29063728]
[1768560800321,0.94181377,3297.4,3296.6,0.29063728]
[1768560800523,0.00364858,3297.7,3296.6,0.29063728]
[1768560800716,1.32542054,3297.6,3296.6,0.29063728]
[1768560800911,0.94178701,3297.5,3296.6,0.29063728]
[1768560801114,0.94178701,3297.4,3296.6,0.29063728]
[1768560801317,0.00364858,3297.7,3296.6,0.29063728]
[1768560801517,1.32544088,3297.6,3296.6,0.29063728]
[1768560801718,0.94180144,3297.5,3296.6,0.29063728]
[1768560801917,0.94180144,3297.4,3296.6,0.29063728]
[1768560802113,0.00364858,3297.7,3296.6,0.29063728]
[1768560802311,1.32544558,3297.6,3296.6,0.29063728]
[1768560802513,0.94180373,3297.5,3296.6,0.29063728]
[1768560802715,0.94180373,3297.4,3296.6,0.29063728]
[1768560802921,0.00364858,3297.7,3296.6,0.29063728]
[1768560803114,1.32544163,3297.6,3296.6,0.29063728]
[1768560803317,0.94180203,3297.5,3296.6,0.29063728]
[1768560803625,0.94180203,3297.4,3296.6,0.29063728]
[1768560803929,0.00364858,3297.7,3296.6,0.29063728]
[1768560804123,1.32543293,3297.6,3296.6,0.29063728]
[1768560804326,0.94179593,3297.5,3296.6,0.29063728]
[1768560804623,0.94179593,3297.4,3296.6,0.29063728]
[1768560804821,0.00364858,3297.7,3296.6,0.29063728]
[1768560805021,1.32542979,3297.6,3296.6,0.29063728]
[1768560805224,0.94179382,3297.5,3296.6,0.29063728]
[1768560805421,0.94179382,3297.4,3296.6,0.29063728]
[1768560805621,0.00364858,3297.7,3296.6,0.29063728]
[1768560805823,1.32544245,3297.6,3296.6,0.29063728]
[1768560806022,0.94180275,3297.5,3296.6,0.29063728]
[1768560806218,0.00364858,3297.7,3295.7,0.32992602]
[1768560806219,0.85907907,3297.2,3295.7,0.32992602]
[1768560806422,0.85907907,3297.2,3295.9,0.32992602]
[1768560806623,0.85907907,3297.2,3295.9,1.18900509]
[1768560806927,0.85907907,3297.4,3296.0,0.32992602]
[1768560807225,0.94174675,3297.3,3296.0,0.32992602]
[1768560807428,0.94174675,3297.2,3296.0,0.32992602]
[1768560807728,0.85907907,3297.4,3296.0,0.32992602]
[1768560807929,0.94159704,3297.3,3296.1,1.22337623]
[1768560808124,0.94159704,3297.2,3296.1,1.22337623]
[1768560808320,0.15167,3297.6,3296.3,1.22337623]
[1768560808522,1.32499546,3297.5,3296.3,1.22337623]
[1768560808721,1.32499546,3297.4,3296.3,1.22337623]
[1768560808926,0.94149006,3297.3,3296.3,1.22337623]
[1768560809125,0.94149006,3297.2,3296.3,1.22337623]
[1768560809425,0.15167,3297.6,3296.3,1.22337623]
[1768560809625,1.32489107,3297.5,3296.3,1.22337623]
[1768560809826,1.32489107,3297.4,3296.4,0.36429716]
[1768560810019,0.94141512,3297.3,3296.4,0.36429716]
[1768560810219,0.94141512,3297.2,3296.4,0.36429716]
[1768560810420,0.15167,3297.6,3296.4,0.36429716]
[1768560810724,0.15164,3298.3,3297.3,0.36429716]
[1768560810927,0.38353256,3298.2,3297.3,0.36429716]
[1768560811125,0.38353256,3298.1,3297.3,0.36429716]
[1768560811325,0.15164,3298.3,3297.3,0.36429716]
[1768560811528,0.38345674,3298.2,3297.3,0.36429716]
[1768560811729,0.38345674,3298.1,3297.3,0.36429716]
[1768560811930,0.15384773,3298.3,3297.3,0.36429716]
[1768560812130,0.38343066,3298.2,3297.3,0.36429716]
[1768560812430,0.15384773,3298.3,3297.3,0.36429716]
[1768560812629,0.3833064,3298.2,3297.3,0.36429716]
[1768560812829,0.15384773,3298.3,3297.3,0.36429716]
[1768560813030,0.38330747,3298.2,3297.3,0.36429716]
[1768560813228,0.15384773,3298.3,3297.3,0.36429716]
[1768560813429,0.38325139,3298.2,3297.3,0.36429716]
[1768560813630,0.15384773,3298.3,3297.3,0.36429716]
[1768560813825,0.38324457,3298.2,3297.3,0.36429716]
[1768560814030,0.00220773,3298.3,3297.3,1.22337623]
[1768560815428,0.00220773,3298.3,3297.3,0.36429716]
[1768560816524,0.00220773,3298.3,3296.9,0.36429716]
[1768560816721,0.38281151,3298.2,3296.9,0.36429716]
[1768560816922,0.00220773,3298.3,3296.9,0.36429716]
[1768560817120,0.38281749,3298.2,3296.9,0.36429716]
[1768560817325,0.00220773,3298.3,3296.9,0.36429716]
[1768560817637,0.38280489,3298.2,3296.9,0.36429716]
[1768560817836,0.00220773,3298.3,3296.9,0.36429716]
[1768560818036,0.38280471,3298.2,3296.9,0.36429716]
[1768560818227,0.00220773,3298.3,3296.9,0.36429716]
[1768560818427,0.38279962,3298.2,3296.2,0.36429716]
[1768560818630,0.38279962,3298.1,3296.2,0.36429716]
[1768560818832,0.15384773,3298.3,3296.2,0.36429716]
[1768560819034,0.3828296,3298.2,3296.2,0.36429716]
[1768560819223,0.3828296,3298.1,3296.2,0.36429716]
[1768560819430,0.15384773,3298.3,3296.2,0.36429716]
[1768560819628,0.38285616,3298.2,3296.2,0.36429716]
[1768560819829,0.38285616,3298.1,3296.2,0.36429716]
[1768560820025,0.15384773,3298.3,3296.2,0.36429716]
[1768560820230,0.38285924,3298.2,3296.2,0.36429716]
[1768560820532,0.38285924,3298.1,3296.2,0.36429716]
[1768560820731,0.15384773,3298.3,3296.2,0.36429716]
[1768560820930,0.3828557,3298.2,3296.2,0.36429716]
[1768560821132,0.3828557,3298.1,3296.2,0.36429716]
[1768560821331,0.15384773,3298.3,3296.2,0.36429716]
[1768560821536,0.38285191,3298.2,3296.2,0.36429716]
[1768560821729,0.38285191,3298.1,3296.2,0.36429716]
[1768560821930,0.15384773,3298.3,3296.2,0.36429716]
[1768560822132,0.38285124,3298.2,3296.2,0.36429716]
[1768560822435,0.38285124,3298.1,3296.2,0.36429716]
[1768560822741,0.93238185,3298.0,3296.2,0.36429716]
[1768560823040,0.93238185,3297.9,3296.2,0.36429716]
[1768560823238,0.15167,3297.7,3296.2,0.36429716]
[1768560823538,1.3151399,3297.6,3296.2,0.36429716]
[1768560823739,0.93238185,3297.5,3296.2,0.36429716]
[1768560823939,0.93238185,3297.4,3296.2,0.36429716]
[1768560824132,0.15167,3297.7,3296.2,0.36429716]
[1768560824332,1.31462967,3297.6,3296.2,0.36429716]
[1768560824537,0.93197479,3297.5,3296.2,0.36429716]
[1768560824737,0.15167,3297.7,3296.2,0.36429716]
[1768560824937,0.93197332,3297.6,3296.2,0.36429716]
[1768560825139,0.93197332,3297.5,3296.2,0.36429716]
[1768560825447,0.93190929,3297.4,3296.2,0.36429716]
[1768560825639,0.15167,3297.7,3296.2,0.36429716]
[1768560825835,0.93190929,3297.6,3296.2,0.36429716]
[1768560826141,0.93190929,3297.5,3296.2,0.36429716]
[1768560826447,0.15167,3297.7,3296.2,0.36429716]
[1768560826646,0.93189494,3297.6,3296.2,0.36429716]
[1768560826944,0.93189494,3297.5,3296.2,0.36429716]
[1768560827146,0.15167,3297.7,3296.2,0.36429716]
[1768560827346,0.93193149,3297.6,3296.2,0.36429716]
[1768560827544,0.93193149,3297.5,3296.2,0.36429716]
[1768560827840,0.15167,3297.7,3296.2,0.36429716]
[1768560828047,0.93193057,3297.6,3296.2,0.36429716]
[1768560828249,0.93193057,3297.5,3296.2,0.36429716]
[1768560828445,0.15167,3297.7,3296.2,0.36429716]
[1768560828746,0.93187797,3297.6,3296.2,0.36429716]
[1768560828945,0.93187797,3297.5,3296.2,0.36429716]
[1768560829144,0.15167,3297.7,3296.2,0.36429716]
[1768560829346,0.93184029,3297.6,3296.2,0.36429716]
[1768560829657,0.93184029,3297.5,3296.2,0.36429716]
[1768560829948,0.15167,3297.7,3296.2,0.36429716]
[1768560830150,0.93186609,3297.6,3296.2,0.36429716]
[1768560830350,0.93186609,3297.5,3296.2,0.36429716]
[1768560830650,0.15167,3297.7,3296.2,0.36429716]
[1768560830852,0.93183203,3297.6,3296.2,0.36429716]
[1768560831047,0.93183203,3297.5,3296.2,0.36429716]
[1768560831249,0.15167,3297.7,3296.2,0.36429716]
[1768560831547,0.93179839,3297.6,3296.2,0.36429716]
[1768560831739,0.93179839,3297.5,3296.2,0.36429716]
[1768560831938,0.15167,3297.7,3296.2,0.36429716]
[1768560832152,0.93179788,3297.6,3296.2,0.36429716]
[1768560832450,0.93179788,3297.5,3296.2,0.36429716]
[1768560832650,0.15167,3297.7,3296.2,0.36429716]
[1768560832949,0.93176869,3297.6,3296.2,0.36429716]
[1768560833148,0.93176869,3297.5,3296.2,0.36429716]
[1768560833356,0.15167,3297.7,3296.2,0.36429716]
[1768560833536,0.93173395,3297.6,3296.2,0.36429716]
[1768560833850,0.93173395,3297.5,3296.2,0.36429716]
[1768560834058,0.93173395,3297.4,3296.2,0.36429716]
[1768560834351,0.15167,3297.7,3296.2,0.36429716]
[1768560834553,1.31426436,3297.6,3296.2,0.36429716]
[1768560834742,0.93170011,3297.5,3296.2,0.36429716]
[1768560834944,0.15167,3297.7,3296.2,0.36429716]
[1768560835138,0.93169991,3297.6,3296.2,0.36429716]
[1768560835341,0.93169991,3297.5,3296.2,0.36429716]
[1768560835548,0.15167,3297.7,3296.2,0.36429716]
[1768560835749,0.93166739,3297.6,3296.2,0.36429716]
[1768560835948,0.93166739,3297.5,3296.2,0.36429716]
[1768560836144,0.15167,3297.7,3296.2,0.36429716]
[1768560836345,0.93163846,3297.6,3296.2,0.36429716]
[1768560836549,0.93163846,3297.5,3296.2,0.36429716]
[1768560836751,0.15167,3297.7,3296.2,0.36429716]
[1768560836953,0.93163855,3297.6,3296.2,0.36429716]
[1768560837249,0.93163855,3297.5,3296.2,0.36429716]
[1768560837455,0.15167,3297.7,3296.2,0.36429716]
[1768560837754,0.93164234,3297.6,3296.2,0.36429716]
[1768560837952,0.93164234,3297.5,3296.2,0.36429716]
[1768560838153,0.15167,3297.7,3296.2,0.36429716]
[1768560838344,0.93164449,3297.6,3296.2,0.36429716]
[1768560838545,0.93164449,3297.5,3296.2,0.36429716]
[1768560838751,0.15167,3297.7,3296.2,0.36429716]
[1768560839054,0.93164471,3297.6,3296.2,0.36429716]
[1768560839247,0.93164471,3297.5,3296.2,0.36429716]
[1768560839448,0.15167,3297.7,3296.2,0.36429716]
[1768560839749,0.9316464,3297.6,3296.2,0.36429716]
[1768560840048,0.85880657,3297.4,3295.8,0.35776116]
[1768560840253,1.30114706,3297.3,3295.8,0.35776116]
[1768560840444,0.9316464,3297.2,3295.8,0.35776116]
[1768560840646,0.93148109,3297.1,3295.8,0.35776116]
[1768560840854,0.36950066,3297.3,3295.8,0.35776116]
[1768560841056,0.93082069,3297.2,3295.8,0.35776116]
[1768560841356,0.93082069,3297.1,3295.8,0.35776116]
[1768560841555,0.36950066,3297.3,3295.8,0.35776116]
[1768560841748,0.93064149,3297.2,3295.8,0.35776116]
[1768560841947,0.93064149,3297.1,3295.8,0.35776116]
[1768560842151,0.36950066,3297.3,3295.8,0.35776116]
[1768560842358,0.93051292,3297.2,3295.8,0.35776116]
[1768560842555,0.93051292,3297.1,3295.8,0.35776116]
[1768560842756,0.15169,3297.4,3295.8,0.35776116]
[1768560843061,0.93051157,3297.3,3295.8,0.35776116]
[1768560843249,0.93051157,3297.2,3295.8,0.35776116]
[1768560843448,0.15169,3297.4,3295.8,0.35776116]
[1768560843652,0.93044434,3297.3,3295.8,0.35776116]
[1768560843856,0.93044434,3297.2,3295.8,0.35776116]
[1768560844056,0.15169,3297.4,3295.8,0.35776116]
[1768560844257,0.9305468,3297.3,3295.8,0.35776116]
[1768560844457,0.9305468,3297.2,3295.8,0.35776116]
[1768560844657,0.93054587,3297.1,3295.8,0.35776116]
[1768560844853,0.15169,3297.4,3295.8,0.35776116]
[1768560845047,0.93054587,3297.3,3295.8,0.35776116]
[1768560845246,0.93054587,3297.2,3295.8,0.35776116]
[1768560845452,0.93054587,3297.1,3295.8,0.35776116]
[1768560845656,0.15169,3297.4,3295.8,0.35776116]
[1768560845854,1.31312112,3297.3,3295.8,0.35776116]
[1768560846051,0.93067448,3297.2,3295.8,0.35776116]
[1768560846252,0.93067448,3297.1,3295.8,0.35776116]
[1768560846558,0.93109486,3297.0,3295.8,0.35776116]
[1768560846859,0.15169,3297.2,3295.8,0.35776116]
[1768560847060,0.93108941,3297.1,3295.8,0.35776116]
[1768560847260,0.93108941,3297.0,3295.8,0.35776116]
[1768560847448,0.15169,3297.2,3295.8,0.35776116]
[1768560847760,0.93109914,3297.1,3295.8,0.35776116]
[1768560847956,0.93109914,3297.0,3295.8,0.35776116]
[1768560848159,0.15169,3297.2,3295.8,0.35776116]
[1768560848358,0.93114871,3297.1,3295.8,0.35776116]
[1768560848553,0.93114871,3297.0,3295.8,0.35776116]
[1768560848760,0.15169,3297.2,3295.8,0.35776116]
[1768560848962,0.93114938,3297.1,3295.8,0.35776116]
[1768560849160,0.93114938,3297.0,3295.8,0.35776116]
[1768560849361,0.15169,3297.2,3295.8,0.35776116]
[1768560849555,0.93119298,3297.1,3295.8,0.35776116]
[1768560849755,0.93119298,3297.0,3295.8,0.35776116]
[1768560850061,0.15169,3297.2,3295.8,0.35776116]
[1768560850257,1.313959,3297.1,3295.8,0.35776116]
[1768560850457,0.93128192,3297.0,3295.8,0.35776116]
[1768560850659,0.93128192,3296.9,3295.8,0.35776116]
[1768560850859,0.15169,3297.2,3295.8,0.35776116]
[1768560851066,1.31399597,3297.1,3295.8,0.35776116]
[1768560851252,0.93127736,3297.0,3295.8,0.35776116]
[1768560851456,0.15169,3297.2,3295.8,0.35776116]
[1768560851764,0.93143522,3297.1,3295.8,0.35776116]
[1768560851968,0.15167,3297.7,3295.8,0.35776116]
[1768560852170,1.31437452,3297.6,3295.8,0.35776116]
[1768560852369,1.31437452,3297.5,3295.8,0.35776116]
[1768560852665,1.31437452,3297.4,3295.8,0.35776116]
[1768560852966,1.31437452,3297.3,3295.8,0.35776116]
[1768560853267,1.31437452,3297.2,3295.8,0.35776116]
[1768560853465,0.93153742,3297.1,3295.8,0.35776116]
[1768560853766,0.93153742,3297.0,3295.8,0.35776116]
[1768560853967,0.15168,3297.4,3295.8,0.35776116]
[1768560854167,1.31490553,3297.3,3295.8,0.35776116]
[1768560854367,0.15168,3297.4,3295.8,0.35776116]
[1768560854368,1.31490554,3297.2,3295.8,0.35776116]
[1768560854671,0.9319677,3297.1,3295.8,0.35776116]
[1768560854872,0.9319677,3297.0,3295.8,0.35776116]
[1768560855067,0.15168,3297.4,3295.8,0.35776116]
[1768560855266,1.31492536,3297.3,3295.8,0.35776116]
[1768560855565,1.31492536,3297.2,3295.8,0.35776116]
[1768560855773,0.9319862,3297.1,3295.8,0.35776116]
[1768560855960,0.9319862,3297.0,3295.8,0.35776116]
[1768560856161,0.15169,3297.3,3295.8,0.35776116]
[1768560856468,1.31490599,3297.2,3295.8,0.35776116]
[1768560856670,0.93197157,3297.1,3295.8,0.35776116]
[1768560856872,0.93197157,3297.0,3295.8,0.35776116]
[1768560857069,0.15169,3297.3,3295.8,0.35776116]
[1768560857270,1.31490204,3297.2,3295.8,0.35776116]
[1768560857569,0.93197147,3297.1,3295.8,0.35776116]